{"text_format":"1","workbook":"xlsx","n_sheets":3,"sheets":["Base","Edit","Feuil3"],"not_rendered":{"charts":0,"images":0,"macros":0,"external_links":0,"defined_names":0,"comments":0,"pivot_tables":0},"unopened":[],"bounds":{"document_bytes":16777216,"sheet_cells":100000,"rows_first":2000,"rows_last":500,"rows_between":2000,"halvings":0,"cell_chars":16384,"cell_head_chars":4096},"cells_cut":0,"cells_raw":0,"read":"whole","date_system":"1900"}

{"sheet":"Base","index":0,"n_rows":26,"n_cols":116,"rows_kept":26,"cut":false,"hidden":false,"merged":[]}
["Date","2015-09-09","2015-09-10","2015-09-11","2015-09-12","2015-09-13","2015-09-14","2015-09-15","2015-09-16","2015-09-17","2015-09-18","2015-09-19","2015-09-20","2015-09-21","2015-09-22","2015-09-23","2015-09-24","2015-09-25","2015-09-26","2015-09-27","2015-09-28","2015-09-29","2015-09-30","2015-10-01","2015-10-02","2015-10-03","2015-10-04","2015-10-05","2015-10-06","2015-10-07","2015-10-08","2015-10-09","2015-10-10","2015-10-11","2015-10-12","2015-10-13","2015-10-14","2015-10-15","2015-10-16","2015-10-17","2015-10-18","2015-10-19","2015-10-20","2015-10-21","2015-10-22","2015-10-23","2015-10-24","2015-10-25","2015-10-26","2015-10-27","2015-10-28","2015-10-29","2015-10-30","2015-10-31","2015-11-01","2015-11-02","2015-11-03","2015-11-04","2015-11-05","2015-11-06","2015-11-07","2015-11-08","2015-11-09","2015-11-10","2015-11-11","2015-11-12","2015-11-13","2015-11-14","2015-11-15","2015-11-16","2015-11-17","2015-11-18","2015-11-19","2015-11-20","2015-11-21","2015-11-22","2015-11-23","2015-11-24","2015-11-25","2015-11-26","2015-11-27","2015-11-28","2015-11-29","2015-11-30","2015-12-01","2015-12-02","2015-12-03","2015-12-04","2015-12-05","2015-12-06","2015-12-07","2015-12-08","2015-12-09","2015-12-10","2015-12-11","2015-12-12","2015-12-13","2015-12-14","2015-12-15","2015-12-16","2015-12-17","2015-12-18","2015-12-19","2015-12-20","2015-12-21","2015-12-22","2015-12-23","2015-12-24","2015-12-25","2015-12-26","2015-12-27","2015-12-28","2015-12-29","2015-12-30","2015-12-31"]
["Paul","G",null,null,"G",null,null,null,null,null,null,null,null,null,null,null,null,null,null,null,null,null,"G"]
["Renè",null,null,"J",null,null,null,null,"G","J",null,"J",null,null,null,null,"J",null,null,null,null,null,"J","J",null,null,null,"J",null,"J",null,null,null,"J",null,"J",null,null,null,"J",null,"J",null,null,null,"J",null,"J",null,null,null,"J",null,"J",null,null,null,"J",null,"J",null,null,null,"J",null,"J",null,null,null,"J",null,"J",null,null,null,"J",null,"J",null,null,null,"J",null,"J",null,null,null,"J",null,"J",null,null,null,"J",null,"J",null,null,null,"J",null,"J",null,null,null,"J",null,"J",null,null,null,"J",null,"J"]
["André",null,"G",null,null,null,null,"J",null,null,null,null,null,null,null,"G",null,null,null,null,"J"]
["Ewan",null,null,null,"J",null,"G",null,null,null,null,"J",null,null,null,null,null,"J",null,null,null,null,"G","J",null,null,null,null,null,"J",null,null,null,null,null,"J",null,null,null,null,null,"J",null,null,null,null,null,"J",null,null,null,null,null,"J",null,null,null,null,null,"J",null,null,null,null,null,"J",null,null,null,null,null,"J",null,null,null,null,null,"J",null,null,null,null,null,"J",null,null,null,null,null,"J",null,null,null,null,null,"J",null,null,null,null,null,"J",null,null,null,null,null,"J",null,null,null,null,null,"J"]
["Marcel",null,null,null,null,null,null,null,"J",null,null,null,null,null,null,null,null,null,null,null,null,"J","G"]
["Patrick",null,null,null,"J",null,null,null,null,null,null,null,"J",null,null,null,null,"J","G",null,null,"G","G",null,"J",null,null,null,null,null,"J",null,null,null,null,null,"J",null,null,null,null,null,"J",null,null,null,null,null,"J",null,null,null,null,null,"J",null,null,null,null,null,"J",null,null,null,null,null,"J",null,null,null,null,null,"J",null,null,null,null,null,"J",null,null,null,null,null,"J",null,null,null,null,null,"J",null,null,null,null,null,"J",null,null,null,null,null,"J",null,null,null,null,null,"J",null,null,null,null,null,"J"]
["Eric",null,null,null,null,null,null,null,"J","G",null,null,"G",null,null,null,null,null,null,null,"J",null,"G",null,"G",null,null,"G",null,null,"G",null,null,"G",null,null,"G",null,null,"G",null,null,"G",null,null,"G",null,null,"G",null,null,"G",null,null,"G",null,null,"G",null,null,"G",null,null,"G",null,null,"G",null,null,"G",null,null,"G",null,null,"G",null,null,"G",null,null,"G",null,null,"G",null,null,"G",null,null,"G",null,null,"G",null,null,"G",null,null,"G",null,null,"G",null,null,"G",null,null,"G",null,null,"G",null,null,"G"]
["Corinne",null,null,null,null,null,null,null,null,null,null,"J",null,null,"J",null,null,null,null,null,null,null,null,"J",null,null,"J",null,null,"J",null,null,"J",null,null,"J",null,null,"J",null,null,"J",null,null,"J",null,null,"J",null,null,"J",null,null,"J",null,null,"J",null,null,"J",null,null,"J",null,null,"J",null,null,"J",null,null,"J",null,null,"J",null,null,"J",null,null,"J",null,null,"J",null,null,"J",null,null,"J",null,null,"J",null,null,"J",null,null,"J",null,null,"J",null,null,"J",null,null,"J",null,null,"J",null,null,"G"]
["Chrystel",null,null,null,null,null,null,null,null,null,null,null,null,"H",null,null,null,null,"J",null,"J",null,"J",null,null,"J",null,null,null,null,null,"K",null,null,null,null,null,"L",null,null,null,null,null,"M",null,null,null,null,null,"N",null,null,null,null,null,"O",null,null,null,null,null,"P",null,null,null,null,null,"Q",null,null,null,null,null,"R",null,null,null,null,null,"S",null,null,null,null,null,"T",null,null,null,null,null,"U",null,null,null,null,null,"V",null,null,null,null,null,"W",null,null,null,null,null,"X",null,null,null,null,null,"Y"]
["Monique",null,null,null,null,null,null,null,null,"J",null,null,"J",null,null,null,null,"J",null,null,null,null,"J","J",null,null,null,"J",null,"J",null,null,null,"J",null,"J",null,null,null,"J",null,"J",null,null,null,"J",null,"J",null,null,null,"J",null,"J",null,null,null,"J",null,"J",null,null,null,"J",null,"J",null,null,null,"J",null,"J",null,null,null,"J",null,"J",null,null,null,"J",null,"J",null,null,null,"J",null,"J",null,null,null,"J",null,"J",null,null,null,"J",null,"J",null,null,null,"J",null,"J",null,null,null,"G",null,"J"]
["Léa",null,null,null,null,null,null,null,null,null,null,null,null,null,null,null,"G",null,null,null,null,"J"]
["Lucas",null,null,null,null,null,null,null,null,"J",null,null,"J",null,null,null,null,null,"J",null,null,null,null,"J",null,null,null,"J",null,"J",null,null,null,"J",null,"J",null,null,null,"J",null,"J",null,null,null,"J",null,"J",null,null,null,"J",null,"J",null,null,null,"J",null,"J",null,null,null,"J",null,"J",null,null,null,"J",null,"J",null,null,null,"J",null,"J",null,null,null,"J",null,"J",null,null,null,"J",null,"J",null,null,null,"J",null,"J",null,null,null,"J",null,"J",null,null,null,"J",null,"J",null,null,null,"J",null,"J"]
["André",null,null,null,null,null,null,null,null,null,null,null,null,null,null,null,null,null,null,null,null,null,"J"]
["Anne-Marie",null,null,null,null,null,null,null,null,null,null,null,null,"J",null,null,null,null,"J","G",null,null,"G","J",null,null,null,null,null,"J",null,null,null,null,null,"J",null,null,null,null,null,"J",null,null,null,null,null,"J",null,null,null,null,null,"J",null,null,null,null,null,"J",null,null,null,null,null,"J",null,null,null,null,null,"J",null,null,null,null,null,"J",null,null,null,null,null,"J",null,null,null,null,null,"J",null,null,null,null,null,"J",null,null,null,null,null,"J",null,null,null,null,null,"J",null,null,null,null,null,"G"]
["Madeleine","G",null,null,"G",null,null,null,null,null,null,null,null,"G",null,null,null,null,null,null,null,"J"]
["Pierrette",null,null,"J",null,null,null,null,"G","J",null,null,"J",null,null,"J",null,null,null,null,null,null,null,"J",null,null,null,"J",null,"J",null,null,null,"J",null,"J",null,null,null,"J",null,"J",null,null,null,"J",null,"J",null,null,null,"J",null,"J",null,null,null,"J",null,"J",null,null,null,"J",null,"J",null,null,null,"J",null,"J",null,null,null,"J",null,"J",null,null,null,"J",null,"J",null,null,null,"J",null,"J",null,null,null,"J",null,"J",null,null,null,"J",null,"J",null,null,null,"J",null,"J",null,null,null,"J",null,"J"]
["Jean-pierre",null,"G",null,null,null,null,"J",null,null,null,null,null,null,"H",null,null,null,null,"J",null,"J"]
["Philippe",null,null,null,"J",null,"G",null,null,null,null,null,"J",null,null,null,null,null,null,null,null,null,null,"J",null,null,null,null,null,"J",null,null,null,null,null,"J",null,null,null,null,null,"J",null,null,null,null,null,"J",null,null,null,null,null,"J",null,null,null,null,null,"J",null,null,null,null,null,"J",null,null,null,null,null,"J",null,null,null,null,null,"J",null,null,null,null,null,"J",null,null,null,null,null,"J",null,null,null,null,null,"J",null,null,null,null,null,"J",null,null,null,null,null,"J",null,null,null,null,null,"J"]
["Eloide",null,null,null,null,null,null,null,"J",null,null,null,null,null,null,null,null,null,null,"J"]
["Carla",null,null,null,"J",null,null,null,null,null,null,null,null,null,"G",null,null,null,null,null,null,null,"J",null,"J",null,null,null,null,null,"J",null,null,null,null,null,"J",null,null,null,null,null,"J",null,null,null,null,null,"J",null,null,null,null,null,"J",null,null,null,null,null,"J",null,null,null,null,null,"J",null,null,null,null,null,"J",null,null,null,null,null,"J",null,null,null,null,null,"J",null,null,null,null,null,"J",null,null,null,null,null,"J",null,null,null,null,null,"J",null,null,null,null,null,"J",null,null,null,null,null,"J"]
["Jaqueline",null,null,null,null,null,null,null,"J","G",null,null,null,"J",null,null,null,null,null,null,null,"G",null,null,"G",null,null,"G",null,null,"G",null,null,"G",null,null,"G",null,null,"G",null,null,"G",null,null,"G",null,null,"G",null,null,"G",null,null,"G",null,null,"G",null,null,"G",null,null,"G",null,null,"G",null,null,"G",null,null,"G",null,null,"G",null,null,"G",null,null,"G",null,null,"G",null,null,"G",null,null,"G",null,null,"G",null,null,"G",null,null,"G",null,null,"G",null,null,"G",null,null,"G",null,null,"G",null,null,"G"]
["Jean-pierre",null,null,null,null,null,null,null,null,null,null,null,"G",null,null,null,null,null,null,null,null,null,null,"J",null,null,"J",null,null,"J",null,null,"J",null,null,"J",null,null,"J",null,null,"J",null,null,"J",null,null,"J",null,null,"J",null,null,"J",null,null,"J",null,null,"J",null,null,"J",null,null,"J",null,null,"J",null,null,"J",null,null,"J",null,null,"J",null,null,"J",null,null,"J",null,null,"J",null,null,"J",null,null,"J",null,null,"J",null,null,"J",null,null,"J",null,null,"J",null,null,"J",null,null,"J",null,null,"G"]
["Michel",null,null,null,null,null,null,"G",null,null,null,null,null,null,"J",null,null,null,"G","J",null,null,null,null,null,"J",null,null,null,null,null,"K",null,null,null,null,null,"L",null,null,null,null,null,"M",null,null,null,null,null,"N",null,null,null,null,null,"O",null,null,null,null,null,"P",null,null,null,null,null,"Q",null,null,null,null,null,"R",null,null,null,null,null,"S",null,null,null,null,null,"T",null,null,null,null,null,"U",null,null,null,null,null,"V",null,null,null,null,null,"W",null,null,null,null,null,"X"]
["Rémi",null,null,null,null,null,null,null,null,"J",null,null,null,null,null,null,null,"J",null,null,null,null,null,"J",null,null,null,"J",null,"J",null,null,null,"J",null,"J",null,null,null,"J",null,"J",null,null,null,"J",null,"J",null,null,null,"J",null,"J",null,null,null,"J",null,"J",null,null,null,"J",null,"J",null,null,null,"J",null,"J",null,null,null,"J",null,"J",null,null,null,"J",null,"J",null,null,null,"J",null,"J",null,null,null,"J",null,"J",null,null,null,"J",null,"J",null,null,null,"J",null,"J",null,null,null,"G",null,"J"]
["Simone",null,null,null,null,null,null,null,null,null,null,null,null,null,"J",null,"G"]

{"sheet":"Edit","index":1,"n_rows":26,"n_cols":5,"rows_kept":26,"cut":false,"hidden":false,"merged":[]}
["DATE","Liste G","Liste J",null,"code"]
["2015-09-30",{"$f":"IFERROR(INDEX(Base!$A:$A,MATCH(\"G\"&ROW($A1),$E:$E,0)),\"\")","v":"Paul"},{"$f":"IFERROR(INDEX(Base!$A:$A,MATCH(\"J\"&ROW($A1),$E:$E,0)),\"\")","v":"Renè"},null,{"$f":"INDEX(Base!2:2,MATCH($A$2,Base!$1:$1,0))&COUNTIF($E$1:E1,LEFT(INDEX(Base!2:2,MATCH($A$2,Base!$1:$1,0)),1)&\"*\")+1","v":"G1"}]
[null,{"$f":"IFERROR(INDEX(Base!$A:$A,MATCH(\"G\"&ROW($A2),$E:$E,0)),\"\")","v":"Ewan"},{"$f":"IFERROR(INDEX(Base!$A:$A,MATCH(\"J\"&ROW($A2),$E:$E,0)),\"\")","v":"Chrystel"},null,{"$f":"INDEX(Base!3:3,MATCH($A$2,Base!$1:$1,0))&COUNTIF($E$1:E2,LEFT(INDEX(Base!3:3,MATCH($A$2,Base!$1:$1,0)),1)&\"*\")+1","v":"J1"}]
[null,{"$f":"IFERROR(INDEX(Base!$A:$A,MATCH(\"G\"&ROW($A3),$E:$E,0)),\"\")","v":"Marcel"},{"$f":"IFERROR(INDEX(Base!$A:$A,MATCH(\"J\"&ROW($A3),$E:$E,0)),\"\")","v":"Monique"},null,{"$f":"INDEX(Base!4:4,MATCH($A$2,Base!$1:$1,0))&COUNTIF($E$1:E3,LEFT(INDEX(Base!4:4,MATCH($A$2,Base!$1:$1,0)),1)&\"*\")+1","v":"4"}]
[null,{"$f":"IFERROR(INDEX(Base!$A:$A,MATCH(\"G\"&ROW($A4),$E:$E,0)),\"\")","v":"Patrick"},{"$f":"IFERROR(INDEX(Base!$A:$A,MATCH(\"J\"&ROW($A4),$E:$E,0)),\"\")","v":"André"},null,{"$f":"INDEX(Base!5:5,MATCH($A$2,Base!$1:$1,0))&COUNTIF($E$1:E4,LEFT(INDEX(Base!5:5,MATCH($A$2,Base!$1:$1,0)),1)&\"*\")+1","v":"G2"}]
[null,{"$f":"IFERROR(INDEX(Base!$A:$A,MATCH(\"G\"&ROW($A5),$E:$E,0)),\"\")","v":"Eric"},{"$f":"IFERROR(INDEX(Base!$A:$A,MATCH(\"J\"&ROW($A5),$E:$E,0)),\"\")","v":"Carla"},null,{"$f":"INDEX(Base!6:6,MATCH($A$2,Base!$1:$1,0))&COUNTIF($E$1:E5,LEFT(INDEX(Base!6:6,MATCH($A$2,Base!$1:$1,0)),1)&\"*\")+1","v":"G3"}]
[null,{"$f":"IFERROR(INDEX(Base!$A:$A,MATCH(\"G\"&ROW($A6),$E:$E,0)),\"\")","v":"Anne-Marie"},{"$f":"IFERROR(INDEX(Base!$A:$A,MATCH(\"J\"&ROW($A6),$E:$E,0)),\"\")","v":""},null,{"$f":"INDEX(Base!7:7,MATCH($A$2,Base!$1:$1,0))&COUNTIF($E$1:E6,LEFT(INDEX(Base!7:7,MATCH($A$2,Base!$1:$1,0)),1)&\"*\")+1","v":"G4"}]
[null,{"$f":"IFERROR(INDEX(Base!$A:$A,MATCH(\"G\"&ROW($A7),$E:$E,0)),\"\")","v":""},{"$f":"IFERROR(INDEX(Base!$A:$A,MATCH(\"J\"&ROW($A7),$E:$E,0)),\"\")","v":""},null,{"$f":"INDEX(Base!8:8,MATCH($A$2,Base!$1:$1,0))&COUNTIF($E$1:E7,LEFT(INDEX(Base!8:8,MATCH($A$2,Base!$1:$1,0)),1)&\"*\")+1","v":"G5"}]
[null,{"$f":"IFERROR(INDEX(Base!$A:$A,MATCH(\"G\"&ROW($A8),$E:$E,0)),\"\")","v":""},{"$f":"IFERROR(INDEX(Base!$A:$A,MATCH(\"J\"&ROW($A8),$E:$E,0)),\"\")","v":""},null,{"$f":"INDEX(Base!9:9,MATCH($A$2,Base!$1:$1,0))&COUNTIF($E$1:E8,LEFT(INDEX(Base!9:9,MATCH($A$2,Base!$1:$1,0)),1)&\"*\")+1","v":"9"}]
[null,{"$f":"IFERROR(INDEX(Base!$A:$A,MATCH(\"G\"&ROW($A9),$E:$E,0)),\"\")","v":""},{"$f":"IFERROR(INDEX(Base!$A:$A,MATCH(\"J\"&ROW($A9),$E:$E,0)),\"\")","v":""},null,{"$f":"INDEX(Base!10:10,MATCH($A$2,Base!$1:$1,0))&COUNTIF($E$1:E9,LEFT(INDEX(Base!10:10,MATCH($A$2,Base!$1:$1,0)),1)&\"*\")+1","v":"J2"}]
[null,{"$f":"IFERROR(INDEX(Base!$A:$A,MATCH(\"G\"&ROW($A10),$E:$E,0)),\"\")","v":""},{"$f":"IFERROR(INDEX(Base!$A:$A,MATCH(\"J\"&ROW($A10),$E:$E,0)),\"\")","v":""},null,{"$f":"INDEX(Base!11:11,MATCH($A$2,Base!$1:$1,0))&COUNTIF($E$1:E10,LEFT(INDEX(Base!11:11,MATCH($A$2,Base!$1:$1,0)),1)&\"*\")+1","v":"J3"}]
[null,{"$f":"IFERROR(INDEX(Base!$A:$A,MATCH(\"G\"&ROW($A11),$E:$E,0)),\"\")","v":""},{"$f":"IFERROR(INDEX(Base!$A:$A,MATCH(\"J\"&ROW($A11),$E:$E,0)),\"\")","v":""},null,{"$f":"INDEX(Base!12:12,MATCH($A$2,Base!$1:$1,0))&COUNTIF($E$1:E11,LEFT(INDEX(Base!12:12,MATCH($A$2,Base!$1:$1,0)),1)&\"*\")+1","v":"12"}]
[null,{"$f":"IFERROR(INDEX(Base!$A:$A,MATCH(\"G\"&ROW($A12),$E:$E,0)),\"\")","v":""},{"$f":"IFERROR(INDEX(Base!$A:$A,MATCH(\"J\"&ROW($A12),$E:$E,0)),\"\")","v":""},null,{"$f":"INDEX(Base!13:13,MATCH($A$2,Base!$1:$1,0))&COUNTIF($E$1:E12,LEFT(INDEX(Base!13:13,MATCH($A$2,Base!$1:$1,0)),1)&\"*\")+1","v":"13"}]
[null,{"$f":"IFERROR(INDEX(Base!$A:$A,MATCH(\"G\"&ROW($A13),$E:$E,0)),\"\")","v":""},{"$f":"IFERROR(INDEX(Base!$A:$A,MATCH(\"J\"&ROW($A13),$E:$E,0)),\"\")","v":""},null,{"$f":"INDEX(Base!14:14,MATCH($A$2,Base!$1:$1,0))&COUNTIF($E$1:E13,LEFT(INDEX(Base!14:14,MATCH($A$2,Base!$1:$1,0)),1)&\"*\")+1","v":"J4"}]
[null,{"$f":"IFERROR(INDEX(Base!$A:$A,MATCH(\"G\"&ROW($A14),$E:$E,0)),\"\")","v":""},{"$f":"IFERROR(INDEX(Base!$A:$A,MATCH(\"J\"&ROW($A14),$E:$E,0)),\"\")","v":""},null,{"$f":"INDEX(Base!15:15,MATCH($A$2,Base!$1:$1,0))&COUNTIF($E$1:E14,LEFT(INDEX(Base!15:15,MATCH($A$2,Base!$1:$1,0)),1)&\"*\")+1","v":"G6"}]
[null,{"$f":"IFERROR(INDEX(Base!$A:$A,MATCH(\"G\"&ROW($A15),$E:$E,0)),\"\")","v":""},{"$f":"IFERROR(INDEX(Base!$A:$A,MATCH(\"J\"&ROW($A15),$E:$E,0)),\"\")","v":""},null,{"$f":"INDEX(Base!16:16,MATCH($A$2,Base!$1:$1,0))&COUNTIF($E$1:E15,LEFT(INDEX(Base!16:16,MATCH($A$2,Base!$1:$1,0)),1)&\"*\")+1","v":"16"}]
[null,{"$f":"IFERROR(INDEX(Base!$A:$A,MATCH(\"G\"&ROW($A16),$E:$E,0)),\"\")","v":""},{"$f":"IFERROR(INDEX(Base!$A:$A,MATCH(\"J\"&ROW($A16),$E:$E,0)),\"\")","v":""},null,{"$f":"INDEX(Base!17:17,MATCH($A$2,Base!$1:$1,0))&COUNTIF($E$1:E16,LEFT(INDEX(Base!17:17,MATCH($A$2,Base!$1:$1,0)),1)&\"*\")+1","v":"17"}]
[null,{"$f":"IFERROR(INDEX(Base!$A:$A,MATCH(\"G\"&ROW($A17),$E:$E,0)),\"\")","v":""},{"$f":"IFERROR(INDEX(Base!$A:$A,MATCH(\"J\"&ROW($A17),$E:$E,0)),\"\")","v":""},null,{"$f":"INDEX(Base!18:18,MATCH($A$2,Base!$1:$1,0))&COUNTIF($E$1:E17,LEFT(INDEX(Base!18:18,MATCH($A$2,Base!$1:$1,0)),1)&\"*\")+1","v":"18"}]
[null,{"$f":"IFERROR(INDEX(Base!$A:$A,MATCH(\"G\"&ROW($A18),$E:$E,0)),\"\")","v":""},{"$f":"IFERROR(INDEX(Base!$A:$A,MATCH(\"J\"&ROW($A18),$E:$E,0)),\"\")","v":""},null,{"$f":"INDEX(Base!19:19,MATCH($A$2,Base!$1:$1,0))&COUNTIF($E$1:E18,LEFT(INDEX(Base!19:19,MATCH($A$2,Base!$1:$1,0)),1)&\"*\")+1","v":"19"}]
[null,{"$f":"IFERROR(INDEX(Base!$A:$A,MATCH(\"G\"&ROW($A19),$E:$E,0)),\"\")","v":""},{"$f":"IFERROR(INDEX(Base!$A:$A,MATCH(\"J\"&ROW($A19),$E:$E,0)),\"\")","v":""},null,{"$f":"INDEX(Base!20:20,MATCH($A$2,Base!$1:$1,0))&COUNTIF($E$1:E19,LEFT(INDEX(Base!20:20,MATCH($A$2,Base!$1:$1,0)),1)&\"*\")+1","v":"20"}]
[null,{"$f":"IFERROR(INDEX(Base!$A:$A,MATCH(\"G\"&ROW($A20),$E:$E,0)),\"\")","v":""},{"$f":"IFERROR(INDEX(Base!$A:$A,MATCH(\"J\"&ROW($A20),$E:$E,0)),\"\")","v":""},null,{"$f":"INDEX(Base!21:21,MATCH($A$2,Base!$1:$1,0))&COUNTIF($E$1:E20,LEFT(INDEX(Base!21:21,MATCH($A$2,Base!$1:$1,0)),1)&\"*\")+1","v":"J5"}]
[null,{"$f":"IFERROR(INDEX(Base!$A:$A,MATCH(\"G\"&ROW($A21),$E:$E,0)),\"\")","v":""},{"$f":"IFERROR(INDEX(Base!$A:$A,MATCH(\"J\"&ROW($A21),$E:$E,0)),\"\")","v":""},null,{"$f":"INDEX(Base!22:22,MATCH($A$2,Base!$1:$1,0))&COUNTIF($E$1:E21,LEFT(INDEX(Base!22:22,MATCH($A$2,Base!$1:$1,0)),1)&\"*\")+1","v":"22"}]
[null,{"$f":"IFERROR(INDEX(Base!$A:$A,MATCH(\"G\"&ROW($A22),$E:$E,0)),\"\")","v":""},{"$f":"IFERROR(INDEX(Base!$A:$A,MATCH(\"J\"&ROW($A22),$E:$E,0)),\"\")","v":""},null,{"$f":"INDEX(Base!23:23,MATCH($A$2,Base!$1:$1,0))&COUNTIF($E$1:E22,LEFT(INDEX(Base!23:23,MATCH($A$2,Base!$1:$1,0)),1)&\"*\")+1","v":"23"}]
[null,{"$f":"IFERROR(INDEX(Base!$A:$A,MATCH(\"G\"&ROW($A23),$E:$E,0)),\"\")","v":""},{"$f":"IFERROR(INDEX(Base!$A:$A,MATCH(\"J\"&ROW($A23),$E:$E,0)),\"\")","v":""},null,{"$f":"INDEX(Base!24:24,MATCH($A$2,Base!$1:$1,0))&COUNTIF($E$1:E23,LEFT(INDEX(Base!24:24,MATCH($A$2,Base!$1:$1,0)),1)&\"*\")+1","v":"24"}]
[null,{"$f":"IFERROR(INDEX(Base!$A:$A,MATCH(\"G\"&ROW($A24),$E:$E,0)),\"\")","v":""},{"$f":"IFERROR(INDEX(Base!$A:$A,MATCH(\"J\"&ROW($A24),$E:$E,0)),\"\")","v":""},null,{"$f":"INDEX(Base!25:25,MATCH($A$2,Base!$1:$1,0))&COUNTIF($E$1:E24,LEFT(INDEX(Base!25:25,MATCH($A$2,Base!$1:$1,0)),1)&\"*\")+1","v":"25"}]
[null,{"$f":"IFERROR(INDEX(Base!$A:$A,MATCH(\"G\"&ROW($A25),$E:$E,0)),\"\")","v":""},{"$f":"IFERROR(INDEX(Base!$A:$A,MATCH(\"J\"&ROW($A25),$E:$E,0)),\"\")","v":""},null,{"$f":"INDEX(Base!26:26,MATCH($A$2,Base!$1:$1,0))&COUNTIF($E$1:E25,LEFT(INDEX(Base!26:26,MATCH($A$2,Base!$1:$1,0)),1)&\"*\")+1","v":"26"}]

{"sheet":"Feuil3","index":2,"n_rows":0,"n_cols":0,"rows_kept":0,"cut":false,"hidden":false,"merged":[]}